[Event "*** Titled Tuesday Blitz"]
[Site "Chess.com"]
[Date "2021.04.27"]
[Round "9"]
[White "Vesper2018"]
[Black "CSB7"]
[Result "1-0"]
[WhiteElo "2577"]
[BlackElo "2719"]
[TimeControl "180+1"]
[EndTime "11:43:17 PDT"]
[Termination "Vesper2018 won by resignation"]

1. e4 {[%clk 0:03:00.9]} 1... e6 {[%clk 0:03:00.9]} 2. d4 {[%clk 0:03:00.4]}
2... d5 {[%clk 0:03:01.3]} 3. e5 {[%clk 0:03:00.8]} 3... c5 {[%clk 0:02:59.9]}
4. c3 {[%clk 0:03:00.7]} 4... Qb6 {[%clk 0:02:58.2]} 5. Nf3 {[%clk 0:03:00.4]}
5... Nc6 {[%clk 0:02:57.4]} 6. a3 {[%clk 0:02:51.6]} 6... f6 {[%clk 0:02:39]} 7.
Bd3 {[%clk 0:02:45.5]} 7... fxe5 {[%clk 0:02:29.9]} 8. dxe5 {[%clk 0:02:42.6]}
8... g6 {[%clk 0:02:29.2]} 9. O-O {[%clk 0:02:36.9]} 9... Bg7 {[%clk 0:02:28.9]}
10. Re1 {[%clk 0:02:31.8]} 10... Nge7 {[%clk 0:02:25.7]} 11. b4 {[%clk
0:02:28.1]} 11... c4 {[%clk 0:01:57.2]} 12. Bc2 {[%clk 0:02:27.5]} 12... O-O
{[%clk 0:01:56.3]} 13. Be3 {[%clk 0:02:17.9]} 13... Qc7 {[%clk 0:01:54.8]} 14.
Bc5 {[%clk 0:02:14.4]} 14... Bd7 {[%clk 0:01:09.2]} 15. b5 {[%clk 0:01:55.9]}
15... Nxe5 {[%clk 0:00:45.1]} 16. Bxe7 {[%clk 0:01:50.8]} 16... Nxf3+ {[%clk
0:00:40.4]} 17. gxf3 {[%clk 0:01:51.1]} 17... Rf7 {[%clk 0:00:40.9]} 18. Bh4
{[%clk 0:01:46.9]} 18... Raf8 {[%clk 0:00:37.5]} 19. Bg3 {[%clk 0:01:32.7]}
19... Qc5 {[%clk 0:00:35.3]} 20. f4 {[%clk 0:01:32.6]} 20... e5 {[%clk
0:00:25.2]} 21. fxe5 {[%clk 0:01:22.3]} 21... Rxf2 {[%clk 0:00:26.1]} 22. Kh1
{[%clk 0:01:21.2]} 22... Bh3 {[%clk 0:00:11.6]} 23. Bxf2 {[%clk 0:01:17.1]}
23... Qxf2 {[%clk 0:00:10.4]} 24. Qxd5+ {[%clk 0:01:16.7]} 24... Kh8 {[%clk
0:00:10.8]} 25. Nd2 {[%clk 0:01:10.5]} 25... Bh6 {[%clk 0:00:06.3]} 26. Rf1
{[%clk 0:01:05.6]} 26... Bxf1 {[%clk 0:00:03.7]} 27. Rxf1 {[%clk 0:01:05.1]}
27... Qe2 {[%clk 0:00:03.3]} 28. Rxf8+ {[%clk 0:00:57.5]} 28... Bxf8 {[%clk
0:00:04.2]} 29. Qf3 {[%clk 0:00:58]} 29... Qe1+ {[%clk 0:00:03]} 30. Qf1 {[%clk
0:00:55.2]} 30... Qxf1+ {[%clk 0:00:02.3]} 31. Nxf1 {[%clk 0:00:55.5]} 31... Bg7
{[%clk 0:00:02.5]} 32. e6 {[%clk 0:00:53.7]} 32... Kg8 {[%clk 0:00:02.8]} 33.
Ne3 {[%clk 0:00:51.1]} 33... Bxc3 {[%clk 0:00:02.8]} 34. Nxc4 {[%clk 0:00:50.8]}
34... Kf8 {[%clk 0:00:03.2]} 35. Be4 {[%clk 0:00:48.5]} 35... b6 {[%clk
0:00:02.9]} 36. Bd5 {[%clk 0:00:44.5]} 36... Ke7 {[%clk 0:00:03.1]} 37. Kg2
{[%clk 0:00:38.5]} 37... Bg7 {[%clk 0:00:01.3]} 38. Kf3 {[%clk 0:00:38.3]} 38...
Kf6 {[%clk 0:00:01.7]} 39. Ke4 {[%clk 0:00:38.6]} 39... Bf8 {[%clk 0:00:02.2]}
40. a4 {[%clk 0:00:37.3]} 40... Bc5 {[%clk 0:00:02.1]} 41. Ne5 {[%clk
0:00:37.1]} 41... h5 {[%clk 0:00:02.4]} 42. Nd7+ {[%clk 0:00:36.1]} 42... Ke7
{[%clk 0:00:02.9]} 43. Nxc5 {[%clk 0:00:36.3]} 43... bxc5 {[%clk 0:00:03.8]} 1-0

[Event "*** Titled Tuesday Blitz"]
[Site "Chess.com"]
[Date "2021.04.27"]
[Round "9"]
[White "OlegKrivonosov"]
[Black "atbenina64"]
[Result "1-0"]
[WhiteElo "2676"]
[BlackElo "2521"]
[TimeControl "180+1"]
[EndTime "11:43:17 PDT"]
[Termination "OlegKrivonosov won on time"]

1. Nf3 {[%clk 0:03:00.9]} 1... Nf6 {[%clk 0:02:59.6]} 2. c4 {[%clk 0:03:00.1]}
2... g6 {[%clk 0:02:59.9]} 3. Nc3 {[%clk 0:02:58.8]} 3... d5 {[%clk 0:03:00.2]}
4. cxd5 {[%clk 0:02:58.2]} 4... Nxd5 {[%clk 0:03:01.1]} 5. e4 {[%clk 0:02:58.4]}
5... Nxc3 {[%clk 0:02:56.5]} 6. dxc3 {[%clk 0:02:58.7]} 6... Qxd1+ {[%clk
0:02:57]} 7. Kxd1 {[%clk 0:02:59.1]} 7... f6 {[%clk 0:02:57.4]} 8. Be3 {[%clk
0:02:58.4]} 8... e5 {[%clk 0:02:57.3]} 9. Nd2 {[%clk 0:02:58.2]} 9... Be6 {[%clk
0:02:53.7]} 10. Bc4 {[%clk 0:02:56.3]} 10... Kf7 {[%clk 0:02:53.9]} 11. Kc2
{[%clk 0:02:55.3]} 11... Nd7 {[%clk 0:02:53.8]} 12. Rhd1 {[%clk 0:02:54.9]}
12... Bc5 {[%clk 0:02:53.6]} 13. Nb3 {[%clk 0:02:53.6]} 13... Bd6 {[%clk
0:02:47.6]} 14. Bxe6+ {[%clk 0:02:51.9]} 14... Kxe6 {[%clk 0:02:48.5]} 15. Na5
{[%clk 0:02:50.1]} 15... b6 {[%clk 0:02:38.5]} 16. Nc4 {[%clk 0:02:45.3]} 16...
Bc5 {[%clk 0:02:36.5]} 17. f3 {[%clk 0:02:42.4]} 17... Rhd8 {[%clk 0:02:32.2]}
18. b4 {[%clk 0:02:38.9]} 18... Bxe3 {[%clk 0:02:28.9]} 19. Nxe3 {[%clk
0:02:39.1]} 19... c6 {[%clk 0:02:15]} 20. Rd3 {[%clk 0:02:27.6]} 20... Nf8
{[%clk 0:02:12.3]} 21. Rad1 {[%clk 0:02:24.8]} 21... Ke7 {[%clk 0:02:10]} 22. a4
{[%clk 0:02:18.4]} 22... Ne6 {[%clk 0:02:08.6]} 23. Rxd8 {[%clk 0:02:17]} 23...
Rxd8 {[%clk 0:02:09.5]} 24. Rxd8 {[%clk 0:02:16.5]} 24... Nxd8 {[%clk
0:02:08.4]} 25. Kd3 {[%clk 0:02:12.8]} 25... Ne6 {[%clk 0:02:02.9]} 26. g3
{[%clk 0:02:10.9]} 26... Kd6 {[%clk 0:01:44.7]} 27. h4 {[%clk 0:02:06.6]} 27...
h5 {[%clk 0:01:43.8]} 28. Nc4+ {[%clk 0:01:56.6]} 28... Kc7 {[%clk 0:01:42.8]}
29. Ne3 {[%clk 0:01:52.8]} 29... a5 {[%clk 0:01:39.1]} 30. bxa5 {[%clk
0:01:26.5]} 30... bxa5 {[%clk 0:01:38.9]} 31. Nc4 {[%clk 0:01:25.8]} 31... Nc5+
{[%clk 0:01:38.3]} 32. Kd2 {[%clk 0:01:24.4]} 32... Nxa4 {[%clk 0:01:33.6]} 33.
Nxa5 {[%clk 0:01:24.7]} 33... Nb6 {[%clk 0:01:28.5]} 34. Kd3 {[%clk 0:01:23.2]}
34... Kd6 {[%clk 0:01:26.7]} 35. Nc4+ {[%clk 0:01:21.3]} 35... Nxc4 {[%clk
0:01:17.5]} 36. Kxc4 {[%clk 0:01:20.8]} 36... f5 {[%clk 0:00:09.9]} 37. Kd3
{[%clk 0:01:15.7]} 37... Kc5 {[%clk 0:00:07.8]} 38. exf5 {[%clk 0:01:12.2]}
38... gxf5 {[%clk 0:00:08.7]} 39. g4 {[%clk 0:01:12.3]} 39... e4+ {[%clk
0:00:07.8]} 40. Ke3 {[%clk 0:01:08.7]} 40... fxg4 {[%clk 0:00:02.1]} 41. fxg4
{[%clk 0:01:07.7]} 41... hxg4 {[%clk 0:00:01]} 42. h5 {[%clk 0:01:07.3]} 42...
g3 {[%clk 0:00:01.4]} 43. h6 {[%clk 0:01:07]} 43... g2 {[%clk 0:00:01.3]} 44.
Kf2 {[%clk 0:01:06.9]} 44... Kc4 {[%clk 0:00:02.1]} 45. h7 {[%clk 0:01:05.1]}
45... e3+ {[%clk 0:00:01.5]} 46. Kxg2 {[%clk 0:01:03.3]} 46... Kd3 {[%clk
0:00:01.5]} 47. h8=Q {[%clk 0:01:01]} 47... c5 {[%clk 0:00:01.3]} 48. Kf1 {[%clk
0:00:58.9]} 48... Kd2 {[%clk 0:00:01.3]} 49. Qd8+ {[%clk 0:00:57.9]} 1-0

[Event "*** Titled Tuesday Blitz"]
[Site "Chess.com"]
[Date "2021.04.27"]
[Round "9"]
[White "Legendinunknown"]
[Black "MFguimaraes"]
[Result "1-0"]
[WhiteElo "2600"]
[BlackElo "2431"]
[TimeControl "180+1"]
[EndTime "11:43:17 PDT"]
[Termination "Legendinunknown won by resignation"]

1. d4 {[%clk 0:03:00.9]} 1... d5 {[%clk 0:02:59.2]} 2. c4 {[%clk 0:03:01.5]}
2... c6 {[%clk 0:02:59.7]} 3. Nc3 {[%clk 0:03:02.1]} 3... dxc4 {[%clk
0:02:58.9]} 4. e4 {[%clk 0:02:58.3]} 4... b5 {[%clk 0:02:58.9]} 5. a4 {[%clk
0:02:56.5]} 5... b4 {[%clk 0:02:59]} 6. Na2 {[%clk 0:02:56.2]} 6... e5 {[%clk
0:02:55.8]} 7. Nf3 {[%clk 0:02:56.1]} 7... exd4 {[%clk 0:02:55.4]} 8. Bxc4
{[%clk 0:02:56.7]} 8... Nf6 {[%clk 0:02:44.8]} 9. Ng5 {[%clk 0:02:52.4]} 9...
Be6 {[%clk 0:02:38.4]} 10. Nxe6 {[%clk 0:02:50.2]} 10... fxe6 {[%clk 0:02:38.8]}
11. O-O {[%clk 0:02:50.9]} 11... e5 {[%clk 0:02:19.3]} 12. f4 {[%clk 0:02:48.5]}
12... Bd6 {[%clk 0:02:19]} 13. fxe5 {[%clk 0:02:43]} 13... Bxe5 {[%clk
0:02:19.9]} 14. Nxb4 {[%clk 0:02:43.5]} 14... Nbd7 {[%clk 0:02:13.1]} 15. Nxc6
{[%clk 0:02:39.1]} 15... Qb6 {[%clk 0:02:12.9]} 16. Nxe5 {[%clk 0:02:38]} 16...
d3+ {[%clk 0:02:08.9]} 17. Kh1 {[%clk 0:02:36.6]} 17... Nxe5 {[%clk 0:02:09.2]}
18. Bb5+ {[%clk 0:02:36.9]} 18... Ke7 {[%clk 0:02:03.6]} 19. Bg5 {[%clk
0:02:35.3]} 19... Rhf8 {[%clk 0:01:54.3]} 20. Qd2 {[%clk 0:02:33.1]} 20... h6
{[%clk 0:01:49.9]} 21. Rf5 {[%clk 0:02:29.4]} 21... Ng4 {[%clk 0:01:22.2]} 22.
Qb4+ {[%clk 0:02:18.2]} 22... Qd6 {[%clk 0:01:19.7]} 23. Qxd6+ {[%clk
0:02:15.4]} 23... Kxd6 {[%clk 0:01:20.6]} 24. Bf4+ {[%clk 0:02:13.8]} 24... Ke7
{[%clk 0:01:15.4]} 25. h3 {[%clk 0:02:09.9]} 25... Nf2+ {[%clk 0:01:11.7]} 26.
Kg1 {[%clk 0:02:09.1]} 26... N6xe4 {[%clk 0:01:06.4]} 27. Re5+ {[%clk
0:02:08.1]} 27... Kf7 {[%clk 0:00:51.9]} 28. Be3 {[%clk 0:01:56.5]} 28... Kg8
{[%clk 0:00:50.6]} 29. Bxd3 {[%clk 0:01:51]} 29... Nxd3 {[%clk 0:00:47.5]} 30.
Rxe4 {[%clk 0:01:50.6]} 30... Nxb2 {[%clk 0:00:43.5]} 31. Rb1 {[%clk 0:01:50.2]}
31... Rae8 {[%clk 0:00:35.8]} 32. Rxe8 {[%clk 0:01:32]} 32... Rxe8 {[%clk
0:00:36.7]} 33. Rxb2 {[%clk 0:01:32.6]} 33... Rxe3 {[%clk 0:00:35.9]} 34. Rb7
{[%clk 0:01:33.5]} 34... Ra3 {[%clk 0:00:30.9]} 35. Rxa7 {[%clk 0:01:32.8]}
35... Ra2 {[%clk 0:00:31.3]} 36. Kh2 {[%clk 0:01:31.3]} 36... Kh7 {[%clk
0:00:30.7]} 37. Kg3 {[%clk 0:01:30.8]} 37... Kg6 {[%clk 0:00:31.2]} 38. Kf3
{[%clk 0:01:26.7]} 38... Kh5 {[%clk 0:00:29.5]} 39. g3 {[%clk 0:01:22.7]} 39...
Kg6 {[%clk 0:00:27.2]} 40. Kg4 {[%clk 0:01:20.7]} 40... Kf6 {[%clk 0:00:23.9]}
41. Ra6+ {[%clk 0:01:19.1]} 41... Kf7 {[%clk 0:00:24.2]} 42. h4 {[%clk
0:01:17.5]} 42... g6 {[%clk 0:00:20.6]} 43. h5 {[%clk 0:01:16.1]} 43... gxh5+
{[%clk 0:00:17.9]} 44. Kxh5 {[%clk 0:01:17]} 44... Rh2+ {[%clk 0:00:16.9]} 45.
Kg4 {[%clk 0:01:17.2]} 45... Kg7 {[%clk 0:00:17.4]} 46. a5 {[%clk 0:01:14.6]}
46... Ra2 {[%clk 0:00:17.7]} 47. Kh4 {[%clk 0:01:12.6]} 47... Kh7 {[%clk
0:00:16.5]} 48. Kg4 {[%clk 0:01:09.7]} 48... Kg7 {[%clk 0:00:16.3]} 49. Kf4
{[%clk 0:01:10.2]} 49... Kh7 {[%clk 0:00:16.3]} 50. Ke5 {[%clk 0:01:07.8]} 50...
Ra3 {[%clk 0:00:16.7]} 51. Kf4 {[%clk 0:01:05]} 51... Ra4+ {[%clk 0:00:16.9]}
52. Kf5 {[%clk 0:01:04.5]} 52... Ra3 {[%clk 0:00:16.7]} 53. Ra7+ {[%clk
0:01:04.5]} 53... Kh8 {[%clk 0:00:16.3]} 54. g4 {[%clk 0:01:04.2]} 54... Rg3
{[%clk 0:00:13.5]} 55. a6 {[%clk 0:01:03.4]} 55... Kg8 {[%clk 0:00:11.5]} 56.
Rb7 {[%clk 0:01:03]} 56... Re3 {[%clk 0:00:11.3]} 57. a7 {[%clk 0:01:02.6]} 1-0

[Event "*** Titled Tuesday Blitz"]
[Site "Chess.com"]
[Date "2021.04.27"]
[Round "9"]
[White "gmcorrales"]
[Black "KhatanbaatarBazar"]
[Result "0-1"]
[WhiteElo "2852"]
[BlackElo "2692"]
[TimeControl "180+1"]
[EndTime "11:43:18 PDT"]
[Termination "KhatanbaatarBazar won on time"]

1. e4 {[%clk 0:01:54.3]} 1... e5 {[%clk 0:02:59.4]} 2. Nf3 {[%clk 0:01:40.8]}
2... Nc6 {[%clk 0:02:59.6]} 3. d4 {[%clk 0:01:40.7]} 3... exd4 {[%clk
0:02:59.7]} 4. Nxd4 {[%clk 0:01:41.6]} 4... Nf6 {[%clk 0:02:59.5]} 5. Nxc6
{[%clk 0:01:41.7]} 5... bxc6 {[%clk 0:03:00.2]} 6. e5 {[%clk 0:01:42.4]} 6...
Qe7 {[%clk 0:03:00.6]} 7. Qe2 {[%clk 0:01:43]} 7... Nd5 {[%clk 0:03:00.9]} 8. c4
{[%clk 0:01:43.6]} 8... Ba6 {[%clk 0:03:01.3]} 9. b3 {[%clk 0:01:43.6]} 9... g6
{[%clk 0:03:01]} 10. Bb2 {[%clk 0:01:43.5]} 10... Bg7 {[%clk 0:03:01.4]} 11. Nd2
{[%clk 0:01:43.6]} 11... O-O {[%clk 0:03:00.9]} 12. O-O-O {[%clk 0:01:43.8]}
12... Rfe8 {[%clk 0:02:49]} 13. Nf3 {[%clk 0:01:43.3]} 13... Nb6 {[%clk
0:02:46.6]} 14. Qd2 {[%clk 0:01:42.2]} 14... Rad8 {[%clk 0:02:43.4]} 15. Bd3
{[%clk 0:01:33.8]} 15... d5 {[%clk 0:02:37.6]} 16. exd6 {[%clk 0:01:29.9]} 16...
Bxb2+ {[%clk 0:02:36.4]} 17. Qxb2 {[%clk 0:01:28.8]} 17... cxd6 {[%clk
0:02:36.2]} 18. Rhe1 {[%clk 0:01:25.2]} 18... Qf8 {[%clk 0:02:35.2]} 19. c5
{[%clk 0:00:42.6]} 19... Bxd3 {[%clk 0:02:32.5]} 20. cxb6 {[%clk 0:00:42.9]}
20... Rxe1 {[%clk 0:02:08.8]} 21. Nxe1 {[%clk 0:00:43.8]} 21... Bf5 {[%clk
0:02:07.6]} 22. bxa7 {[%clk 0:00:43.5]} 22... Qe7 {[%clk 0:02:02.2]} 23. Qd4
{[%clk 0:00:35.7]} 23... c5 {[%clk 0:01:54.3]} 24. Qa4 {[%clk 0:00:30.8]} 24...
Ra8 {[%clk 0:01:49.8]} 25. Qc6 {[%clk 0:00:13.1]} 25... Rxa7 {[%clk 0:01:34.1]}
26. Qxd6 {[%clk 0:00:13]} 26... Qe2 {[%clk 0:01:31]} 27. Qd2 {[%clk 0:00:12.7]}
27... Rxa2 {[%clk 0:01:27.8]} 28. Qxe2 {[%clk 0:00:10.4]} 28... Rxe2 {[%clk
0:01:27.6]} 29. f3 {[%clk 0:00:09.7]} 29... h5 {[%clk 0:01:24.7]} 30. h4 {[%clk
0:00:09.5]} 30... Kg7 {[%clk 0:01:24.4]} 31. g3 {[%clk 0:00:09.1]} 31... Kf6
{[%clk 0:01:17.9]} 32. Nd3 {[%clk 0:00:09.4]} 32... Re3 {[%clk 0:01:13.2]} 33.
Nf4 {[%clk 0:00:08.6]} 33... Rxf3 {[%clk 0:01:09.2]} 34. Kb2 {[%clk 0:00:04.9]}
34... Rxg3 {[%clk 0:01:08.8]} 35. Rc1 {[%clk 0:00:04.8]} 35... Rg4 {[%clk
0:01:07.9]} 36. Nd5+ {[%clk 0:00:05.2]} 36... Ke5 {[%clk 0:01:08.3]} 37. Rxc5
{[%clk 0:00:06.1]} 37... Kd6 {[%clk 0:01:05.4]} 38. Ra5 {[%clk 0:00:06.4]} 38...
Rxh4 {[%clk 0:01:05.5]} 39. Ne3 {[%clk 0:00:06.6]} 39... Be6 {[%clk 0:01:05.3]}
40. Kc3 {[%clk 0:00:05]} 40... Rh3 {[%clk 0:01:04.6]} 41. Kd4 {[%clk 0:00:05.6]}
41... Bxb3 {[%clk 0:01:04.4]} 42. Ra6+ {[%clk 0:00:06.1]} 42... Ke7 {[%clk
0:01:04.7]} 43. Rb6 {[%clk 0:00:06.4]} 43... Be6 {[%clk 0:01:04.5]} 44. Ng2
{[%clk 0:00:05.4]} 44... Ra3 {[%clk 0:01:02]} 45. Nf4 {[%clk 0:00:05.4]} 45...
Kf6 {[%clk 0:01:02]} 46. Nd5+ {[%clk 0:00:05.2]} 46... Kg7 {[%clk 0:01:02.1]}
47. Nf4 {[%clk 0:00:05.2]} 47... Bf5 {[%clk 0:01:02.4]} 48. Rb7 {[%clk
0:00:03.3]} 48... h4 {[%clk 0:00:59.2]} 0-1

[Event "*** Titled Tuesday Blitz"]
[Site "Chess.com"]
[Date "2021.04.27"]
[Round "9"]
[White "1977Ivan"]
[Black "Mihnea2017"]
[Result "1-0"]
[WhiteElo "2654"]
[BlackElo "2474"]
[TimeControl "180+1"]
[EndTime "11:43:23 PDT"]
[Termination "1977Ivan won on time"]

1. d4 {[%clk 0:03:00.9]} 1... Nf6 {[%clk 0:03:00]} 2. c4 {[%clk 0:03:01.5]} 2...
e6 {[%clk 0:03:00.4]} 3. Nc3 {[%clk 0:03:01.9]} 3... Bb4 {[%clk 0:03:00.2]} 4.
e3 {[%clk 0:03:02.4]} 4... O-O {[%clk 0:02:58.8]} 5. Bd3 {[%clk 0:03:02.8]} 5...
d5 {[%clk 0:02:58.6]} 6. a3 {[%clk 0:02:59.5]} 6... Bxc3+ {[%clk 0:02:56.1]} 7.
bxc3 {[%clk 0:03:00.4]} 7... dxc4 {[%clk 0:02:54.8]} 8. Bxc4 {[%clk 0:03:01.3]}
8... c5 {[%clk 0:02:54.1]} 9. Ne2 {[%clk 0:03:00.8]} 9... b6 {[%clk 0:02:52.6]}
10. O-O {[%clk 0:02:58.9]} 10... Nbd7 {[%clk 0:02:51.9]} 11. Ng3 {[%clk
0:02:55.5]} 11... Bb7 {[%clk 0:02:50.8]} 12. Ba2 {[%clk 0:02:48.8]} 12... Rc8
{[%clk 0:02:47.7]} 13. Bb2 {[%clk 0:02:30.3]} 13... Qc7 {[%clk 0:02:47]} 14. Rc1
{[%clk 0:02:13.7]} 14... Qb8 {[%clk 0:02:44]} 15. c4 {[%clk 0:02:05.3]} 15...
cxd4 {[%clk 0:02:35.7]} 16. exd4 {[%clk 0:02:06.2]} 16... Rfd8 {[%clk
0:02:30.5]} 17. Re1 {[%clk 0:02:00.8]} 17... Qf4 {[%clk 0:02:28.2]} 18. Rc2
{[%clk 0:01:48.9]} 18... Nf8 {[%clk 0:01:54.2]} 19. Rd2 {[%clk 0:01:36]} 19...
Ng6 {[%clk 0:01:51.9]} 20. d5 {[%clk 0:01:31.3]} 20... exd5 {[%clk 0:01:43.5]}
21. cxd5 {[%clk 0:01:32.2]} 21... h5 {[%clk 0:01:18.1]} 22. Rd4 {[%clk
0:01:16.1]} 22... Qc7 {[%clk 0:00:46.1]} 23. Bb3 {[%clk 0:00:58.3]} 23... h4
{[%clk 0:00:43]} 24. Nf5 {[%clk 0:00:52.1]} 24... Qc5 {[%clk 0:00:30.8]} 25.
Nxg7 {[%clk 0:00:33.5]} 25... Kxg7 {[%clk 0:00:28.6]} 26. Qf3 {[%clk 0:00:28.1]}
26... Rd6 {[%clk 0:00:20.5]} 27. Rg4 {[%clk 0:00:20.6]} 27... Bxd5 {[%clk
0:00:17.5]} 28. Bxd5 {[%clk 0:00:19.9]} 28... Qxd5 {[%clk 0:00:18]} 29. Bxf6+
{[%clk 0:00:19.4]} 29... Kg8 {[%clk 0:00:15.1]} 30. Rge4 {[%clk 0:00:13.2]}
30... Qb5 {[%clk 0:00:07.6]} 31. Ba1 {[%clk 0:00:09.8]} 31... Rf8 {[%clk
0:00:04.8]} 32. Qe3 {[%clk 0:00:08.6]} 32... Rdd8 {[%clk 0:00:04.1]} 33. Qh6
{[%clk 0:00:08.3]} 1-0

[Event "*** Titled Tuesday Blitz"]
[Site "Chess.com"]
[Date "2021.04.27"]
[Round "9"]
[White "MaevskiyNikolay"]
[Black "NateSolon"]
[Result "1-0"]
[WhiteElo "2484"]
[BlackElo "2617"]
[TimeControl "180+1"]
[EndTime "11:43:23 PDT"]
[Termination "MaevskiyNikolay won by checkmate"]

1. Nf3 {[%clk 0:03:00.9]} 1... d5 {[%clk 0:02:58.3]} 2. c4 {[%clk 0:03:00.5]}
2... e6 {[%clk 0:02:56.6]} 3. d4 {[%clk 0:02:58.3]} 3... Nf6 {[%clk 0:02:55.9]}
4. g3 {[%clk 0:02:58.7]} 4... dxc4 {[%clk 0:02:55.9]} 5. Bg2 {[%clk 0:02:59.2]}
5... a6 {[%clk 0:02:56.1]} 6. Ne5 {[%clk 0:02:59.4]} 6... Bb4+ {[%clk 0:02:55]}
7. Nc3 {[%clk 0:02:59.7]} 7... Nd5 {[%clk 0:02:54.6]} 8. Bd2 {[%clk 0:02:58.8]}
8... Nb6 {[%clk 0:02:54.9]} 9. e3 {[%clk 0:02:57.6]} 9... N8d7 {[%clk
0:02:45.7]} 10. Nxd7 {[%clk 0:02:20.9]} 10... Qxd7 {[%clk 0:02:45.8]} 11. Ne4
{[%clk 0:02:19.4]} 11... Be7 {[%clk 0:02:38.4]} 12. Qc2 {[%clk 0:02:03.3]} 12...
Qa4 {[%clk 0:02:16.5]} 13. Qc1 {[%clk 0:01:58.2]} 13... O-O {[%clk 0:02:07.4]}
14. O-O {[%clk 0:01:58]} 14... Bd7 {[%clk 0:02:04]} 15. Nc5 {[%clk 0:01:55.7]}
15... Bxc5 {[%clk 0:02:03]} 16. dxc5 {[%clk 0:01:55.1]} 16... Nd5 {[%clk
0:02:03.4]} 17. e4 {[%clk 0:01:54.3]} 17... Ne7 {[%clk 0:02:01]} 18. Bc3 {[%clk
0:01:45.9]} 18... Nc6 {[%clk 0:01:29.6]} 19. Bxg7 {[%clk 0:01:15.5]} 19... Kxg7
{[%clk 0:01:26.7]} 20. Qg5+ {[%clk 0:01:15.6]} 20... Kh8 {[%clk 0:01:27.2]} 21.
Qf6+ {[%clk 0:01:15.8]} 21... Kg8 {[%clk 0:01:27.7]} 22. Rad1 {[%clk 0:01:07.1]}
22... Rad8 {[%clk 0:01:20.2]} 23. Qg5+ {[%clk 0:01:05.2]} 23... Kh8 {[%clk
0:01:19.4]} 24. Qf6+ {[%clk 0:01:03.5]} 24... Kg8 {[%clk 0:01:19.9]} 25. e5
{[%clk 0:00:59.3]} 25... Qc2 {[%clk 0:01:08.5]} 26. Bxc6 {[%clk 0:00:42.4]}
26... bxc6 {[%clk 0:01:03.7]} 27. Qe7 {[%clk 0:00:40.4]} 27... Qxb2 {[%clk
0:00:49.3]} 28. Rfe1 {[%clk 0:00:30.4]} 28... Qc2 {[%clk 0:00:27.3]} 29. Rd4
{[%clk 0:00:23.6]} 29... h5 {[%clk 0:00:20.8]} 30. Ree4 {[%clk 0:00:17.7]} 30...
Qc1+ {[%clk 0:00:15.7]} 31. Kg2 {[%clk 0:00:17]} 31... c3 {[%clk 0:00:15.7]} 32.
Qf6 {[%clk 0:00:14.8]} 32... Kh7 {[%clk 0:00:13.3]} 33. Rh4 {[%clk 0:00:12]}
33... Qh6 {[%clk 0:00:12.8]} 34. Rdg4 {[%clk 0:00:08.1]} 34... Rg8 {[%clk
0:00:11.6]} 35. Qxf7+ {[%clk 0:00:06.7]} 35... Rg7 {[%clk 0:00:11.1]} 36. Rxg7+
{[%clk 0:00:06.3]} 36... Qxg7 {[%clk 0:00:11.2]} 37. Rxh5# {[%clk 0:00:06.8]}
1-0

[Event "*** Titled Tuesday Blitz"]
[Site "Chess.com"]
[Date "2021.04.27"]
[Round "9"]
[White "vinniethepooh"]
[Black "Lenyas66"]
[Result "1-0"]
[WhiteElo "2714"]
[BlackElo "2488"]
[TimeControl "180+1"]
[EndTime "11:43:26 PDT"]
[Termination "vinniethepooh won on time"]

1. d4 {[%clk 0:03:00.9]} 1... e6 {[%clk 0:02:59]} 2. c4 {[%clk 0:03:01.4]} 2...
Bb4+ {[%clk 0:02:58.6]} 3. Nc3 {[%clk 0:03:01.4]} 3... c5 {[%clk 0:02:58.6]} 4.
d5 {[%clk 0:03:00.7]} 4... Nf6 {[%clk 0:02:55.8]} 5. f3 {[%clk 0:03:00.6]} 5...
b5 {[%clk 0:02:48]} 6. e4 {[%clk 0:03:00.9]} 6... bxc4 {[%clk 0:02:45.5]} 7.
Bxc4 {[%clk 0:02:58.9]} 7... exd5 {[%clk 0:02:45.7]} 8. Bxd5 {[%clk 0:02:59.6]}
8... Nxd5 {[%clk 0:02:43.8]} 9. Qxd5 {[%clk 0:03:00.5]} 9... Nc6 {[%clk
0:02:43.8]} 10. Ne2 {[%clk 0:02:56.4]} 10... Rb8 {[%clk 0:02:37.9]} 11. O-O
{[%clk 0:02:48.5]} 11... Ne7 {[%clk 0:02:36.8]} 12. Qe5 {[%clk 0:02:40.5]} 12...
Rb6 {[%clk 0:02:24.7]} 13. Nd5 {[%clk 0:02:12.6]} 13... f6 {[%clk 0:01:59.5]}
14. Qh5+ {[%clk 0:01:35.1]} 14... g6 {[%clk 0:01:49.7]} 15. Qh6 {[%clk
0:01:35.2]} 15... Nxd5 {[%clk 0:01:49.4]} 16. exd5 {[%clk 0:01:31.7]} 16... Kf7
{[%clk 0:01:49.2]} 17. Ng3 {[%clk 0:01:24.1]} 17... Qf8 {[%clk 0:01:42.6]} 18.
Qh4 {[%clk 0:01:16.6]} 18... Bb7 {[%clk 0:01:34.2]} 19. a3 {[%clk 0:01:10.3]}
19... Ba5 {[%clk 0:01:33.5]} 20. Qa4 {[%clk 0:01:09.9]} 20... Ra6 {[%clk
0:01:20.5]} 21. Qb5 {[%clk 0:00:33.8]} 21... Bb6 {[%clk 0:01:17.4]} 22. Re1
{[%clk 0:00:24.8]} 22... Qd8 {[%clk 0:01:12.1]} 23. Ne4 {[%clk 0:00:22.5]} 23...
d6 {[%clk 0:01:07.1]} 24. Bf4 {[%clk 0:00:20.7]} 24... Ra5 {[%clk 0:00:51.8]}
25. Nxd6+ {[%clk 0:00:11.3]} 25... Kg7 {[%clk 0:00:45.1]} 26. Qe2 {[%clk
0:00:05.8]} 26... Bxd5 {[%clk 0:00:42]} 27. Qe7+ {[%clk 0:00:05.9]} 27... Qxe7
{[%clk 0:00:40.8]} 28. Rxe7+ {[%clk 0:00:06.8]} 28... Kf8 {[%clk 0:00:40.2]} 29.
Re8+ {[%clk 0:00:07.1]} 29... Kg7 {[%clk 0:00:40.1]} 30. Re7+ {[%clk 0:00:08]}
30... Kf8 {[%clk 0:00:40.1]} 31. Rae1 {[%clk 0:00:08]} 31... c4+ {[%clk
0:00:36.7]} 32. Kh1 {[%clk 0:00:07.2]} 32... g5 {[%clk 0:00:18.2]} 33. Rd7
{[%clk 0:00:07.4]} 1-0